[Event "78th GEO-ch Women 1st League 2021"]
[Site "Tbilisi"]
[Date "2021.03.23"]
[Round "6.8"]
[White "Bedoshvili, Dea"]
[Black "Oniani, Tamar"]
[Result "0-1"]
[ECO "A97"]
[WhiteElo "1667"]
[BlackElo "1604"]
[Annotator "NA"]
[PlyCount "74"]
[EventDate "2021.03.18"]
[EventType "swiss"]
[EventCountry "GEO"]
[SourceTitle "playchess.com"]
[Source "ChessBase"]
[SourceQuality "1"]
[TimeControl "5400+30"]

1. d4 {[%emt 0:01:13]} e6 {[%emt 0:02:18]} 2. Nf3 {[%emt 0:00:12]} f5 {[%emt 0:00:24]} 3. g3 {[%emt 0:00:21]} Nf6 {[%emt 0:00:04]} 4. Bg2 {[%emt 0:00:02]} Be7 {[%emt 0:00:05]} 5. O-O {[%emt 0:00:33]} O-O {[%emt 0:00:04]} 6. c4 {[%emt 0:00:03]} d6 {[%emt 0:00:33]} 7. Nc3 {[%emt 0:00:21]} Qe8 {[%emt 0:08:58]} 8. Re1 {[%emt 0:08:34]} Nbd7 {[%emt 0:04:48]} 9. e4 {[%emt 0:34:38]} fxe4 {[%emt 0:04:42]} 10. Ng5 {[%emt 0:14:18]} Nb6 {[%emt 0:01:43]} 11. Ncxe4 {[%emt 0:01:24]} Nxe4 {[%emt 0:00:46]} 12. Bxe4 {[%emt 0:00:51]} h6 {[%emt 0:17:47]} 13. Nh7 {[%emt 0:12:39]} Rf7 {[%emt 0:07:38]} 14. Bg6 {[%emt 0:00:08]} Nxc4 {[%emt 0:02:25]} 15. Qh5 {[%emt 0:03:36]} d5 {[%emt 0:01:58]} 16. b3 {[%emt 0:07:03]} Nd6 {[%emt 0:00:59]} 17. Bf4 {[%emt 0:01:39]} Nf5 {[%emt 0:04:16]} 18. Be5 {[%emt 0:04:20]} Bb4 {[%emt 0:10:07]} 19. Rec1 {[%emt 0:04:03]} c6 {[%emt 0:00:06]} 20. g4 {[%emt 0:01:49]} Ne7 {[%emt 0:00:52]} 21. g5 {[%emt 0:00:24]} Bd2 {[%emt 0:04:35]} 22. gxh6 {[%emt 0:01:07]} Bxh6 {[%emt 0:00:37]} 23. Ng5 {[%emt 0:00:45]} Nxg6 {[%emt 0:00:29]} 24. Nxf7 {[%emt 0:00:24]} Qxf7 {[%emt 0:00:09]} 25. Rc3 {[%emt 0:00:39]} Nxe5 {[%emt 0:00:53]} 26. Qxe5 {[%emt 0:00:09]} Bf4 {[%emt 0:00:02]} 27. Qe2 {[%emt 0:00:19]} e5 {[%emt 0:00:57]} 28. dxe5 {[%emt 0:00:11]} Qg6+ {[%emt 0:00:41]} 29. Kh1 {[%emt 0:00:16]} Qe4+ {[%emt 0:05:38]} 30. Qxe4 {[%emt 0:00:22]} dxe4 {[%emt 0:00:03]} 31. Rc4 {[%emt 0:00:07]} Bxe5 {[%emt 0:00:12]} 32. Re1 {[%emt 0:00:13]} Bg4 {[%emt 0:00:03]} 33. Kg1 {[%emt 0:00:32]} Bf3 {[%emt 0:00:03]} 34. Re3 {[%emt 0:00:31]} Rd8 {[%emt 0:00:16]} 35. Re1 {[%emt 0:00:22]} Rd6 {[%emt 0:00:15]} 36. Rc5 {[%emt 0:01:03]} Rg6+ {[%emt 0:00:11]} 37. Kf1 {[%emt 0:00:11]} Bxh2 {[%emt 0:00:05]} 0-1

[Event "78th GEO-ch Women 1st League 2021"]
[Site "Tbilisi"]
[Date "2021.03.23"]
[Round "6.9"]
[White "Sordia, Marta"]
[Black "Tasoshvili, Tamar"]
[Result "1/2-1/2"]
[ECO "B01"]
[WhiteElo "1226"]
[BlackElo "1528"]
[Annotator "NA"]
[PlyCount "80"]
[EventDate "2021.03.18"]
[EventType "swiss"]
[EventCountry "GEO"]
[SourceTitle "playchess.com"]
[Source "ChessBase"]
[SourceQuality "1"]
[TimeControl "5400+30"]

1. e4 {[%emt 0:00:00]} d5 {[%emt 0:10:05]} 2. exd5 {[%emt 0:00:00]} Qxd5 {[%emt 0:00:01]} 3. Nc3 {[%emt 0:00:00]} Qd6 {[%emt 0:00:01]} 4. d4 {[%emt 0:00:00]} c6 {[%emt 0:00:01]} 5. Nf3 {[%emt 0:00:09]} Nf6 {[%emt 0:00:04]} 6. h3 {[%emt 0:01:28]} Bf5 {[%emt 0:00:12]} 7. Bd3 {[%emt 0:01:27]} Bg6 {[%emt 0:00:07]} 8. O-O {[%emt 0:00:11]} e6 {[%emt 0:00:03]} 9. Be3 {[%emt 0:00:24]} Nbd7 {[%emt 0:00:08]} 10. Qd2 {[%emt 0:05:11]} Qc7 {[%emt 0:00:06]} 11. Bf4 {[%emt 0:04:21]} Bd6 {[%emt 0:00:05]} 12. Bxd6 {[%emt 0:00:04]} Qxd6 {[%emt 0:00:06]} 13. Rfe1 {[%emt 0:02:01]} O-O {[%emt 0:00:20]} 14. Bxg6 {[%emt 0:01:09]} hxg6 {[%emt 0:00:06]} 15. Ne4 {[%emt 0:01:12]} Nxe4 {[%emt 0:00:55]} 16. Rxe4 {[%emt 0:00:04]} Nf6 {[%emt 0:00:12]} 17. Ree1 {[%emt 0:00:18]} Rad8 {[%emt 0:01:01]} 18. Rad1 {[%emt 0:00:12]} Qc7 {[%emt 0:00:48]} 19. Qe2 {[%emt 0:02:05]} Qf4 {[%emt 0:01:37]} 20. Qe5 {[%emt 0:06:03]} Qf5 {[%emt 0:01:45]} 21. Qxf5 {[%emt 0:00:57]} gxf5 {[%emt 0:00:19]} 22. Ne5 {[%emt 0:03:17]} Nd5 {[%emt 0:01:36]} 23. c3 {[%emt 0:01:29]} f6 {[%emt 0:01:20]} 24. Nd3 {[%emt 0:00:08]} Rfe8 {[%emt 0:00:48]} 25. g3 {[%emt 0:10:01]} Kf7 {[%emt 0:01:58]} 26. Kg2 {[%emt 0:02:32]} b6 {[%emt 0:01:55]} 27. f4 {[%emt 0:58:47]} a5 28. a3 {[%emt 0:00:00]} Nc7 {[%emt 0:13:13]} 29. g4 {[%emt 0:00:00]} fxg4 {[%emt 0:02:28]} 30. hxg4 {[%emt 0:00:00]} Nb5 {[%emt 0:00:35]} 31. a4 {[%emt 0:00:00]} Nd6 {[%emt 0:00:19]} 32. b3 {[%emt 0:00:00]} Rh8 {[%emt 0:00:28]} 33. Nf2 {[%emt 0:00:00]} Rh4 {[%emt 0:11:40]} 34. Rh1 {[%emt 0:00:00]} Rdh8 {[%emt 0:00:22]} 35. Rxh4 {[%emt 0:00:00]} Rxh4 {[%emt 0:00:02]} 36. Kg3 {[%emt 0:00:00]} Rh8 {[%emt 0:00:09]} 37. Re1 {[%emt 0:00:00]} b5 {[%emt 0:00:46]} 38. Nd3 {[%emt 0:00:00]} Nb7 {[%emt 0:03:07]} 39. axb5 {[%emt 0:00:00]} cxb5 {[%emt 0:00:38]} 40. Rc1 {[%emt 0:00:00]} Rd8 {[%emt 0:01:24]} 1/2-1/2

[Event "78th GEO-ch Women 1st League 2021"]
[Site "Tbilisi"]
[Date "2021.03.23"]
[Round "6.10"]
[White "Mamardashvili, Ana"]
[Black "Dolakidze, Mariam"]
[Result "0-1"]
[ECO "A84"]
[WhiteElo "1416"]
[BlackElo "1416"]
[Annotator "NA"]
[PlyCount "84"]
[EventDate "2021.03.18"]
[EventType "swiss"]
[EventCountry "GEO"]
[SourceTitle "playchess.com"]
[Source "ChessBase"]
[SourceQuality "1"]
[TimeControl "5400+30"]

1. d4 {[%emt 0:00:00]} e6 {[%emt 0:02:05]} 2. c4 {[%emt 0:00:00]} f5 {[%emt 0:00:15]} 3. Nc3 {[%emt 0:00:22]} d5 {[%emt 0:00:10]} 4. Bf4 {[%emt 0:01:31]} c6 {[%emt 0:00:20]} 5. e3 {[%emt 0:01:16]} Bd6 {[%emt 0:00:16]} 6. Bxd6 {[%emt 0:05:24]} Qxd6 {[%emt 0:00:07]} 7. Nf3 {[%emt 0:00:09]} Nf6 {[%emt 0:01:02]} 8. Be2 {[%emt 0:04:54]} O-O {[%emt 0:00:17]} 9. O-O {[%emt 0:00:13]} Bd7 {[%emt 0:00:17]} 10. c5 {[%emt 0:05:47]} Qc7 {[%emt 0:00:38]} 11. b4 {[%emt 0:02:40]} b6 {[%emt 0:00:49]} 12. a4 {[%emt 0:05:32]} a5 {[%emt 0:00:24]} 13. cxb6 {[%emt 0:16:25]} Qxb6 {[%emt 0:00:06]} 14. b5 {[%emt 0:00:13]} cxb5 {[%emt 0:00:12]} 15. axb5 {[%emt 0:04:43]} Ne4 {[%emt 0:01:29]} 16. Na4 {[%emt 0:00:39]} Qb7 {[%emt 0:01:10]} 17. Qd3 {[%emt 0:07:19]} Be8 {[%emt 0:02:41]} 18. Nc5 {[%emt 0:03:40]} Qb6 {[%emt 0:00:08]} 19. Rfc1 {[%emt 0:01:35]} Nd7 {[%emt 0:01:32]} 20. Nxd7 {[%emt 0:08:58]} Bxd7 {[%emt 0:00:10]} 21. Ne5 {[%emt 0:00:08]} Be8 {[%emt 0:01:38]} 22. Nc6 {[%emt 0:04:48]} Nd6 {[%emt 0:01:32]} 23. Qb3 {[%emt 0:03:58]} Rf7 {[%emt 0:00:35]} 24. Qa4 {[%emt 0:01:30]} Rc7 {[%emt 0:00:41]} 25. h3 {[%emt 0:02:06]} h6 {[%emt 0:01:57]} 26. Rab1 {[%emt 0:04:33]} Kh8 {[%emt 0:02:24]} 27. Qa3 {[%emt 0:02:52]} Ne4 {[%emt 0:00:44]} 28. Qf8+ {[%emt 0:01:10]} Kh7 {[%emt 0:00:03]} 29. Ne7 {[%emt 0:03:10]} Nf6 {[%emt 0:00:09]} 30. Bh5 {[%emt 0:04:47]} Rb8 {[%emt 0:00:28]} 31. Rxc7 {[%emt 0:01:35]} Qxc7 {[%emt 0:00:23]} 32. b6 {[%emt 0:01:20]} Qb7 {[%emt 0:00:20]} 33. Ng8 {[%emt 0:02:05]} Nxh5 {[%emt 0:00:42]} 34. g4 {[%emt 0:00:26]} Bg6 {[%emt 0:00:33]} 35. Qe7 {[%emt 0:00:19]} fxg4 {[%emt 0:00:47]} 36. Rb2 {[%emt 0:00:46]} Kxg8 {[%emt 0:00:13]} 37. Qxe6+ {[%emt 0:00:05]} Kh7 {[%emt 0:00:02]} 38. hxg4 {[%emt 0:00:35]} Nf6 {[%emt 0:00:17]} 39. f4 {[%emt 0:00:41]} Re8 {[%emt 0:00:25]} 40. Qd6 {[%emt 0:00:28]} Nxg4 {[%emt 0:00:14]} 41. Rg2 {[%emt 0:00:34]} h5 {[%emt 0:00:42]} 42. Rc2 {[%emt 0:00:33]} Bxc2 {[%emt 0:00:09]} 0-1

[Event "78th GEO-ch Women 1st League 2021"]
[Site "Tbilisi"]
[Date "2021.03.23"]
[Round "6.11"]
[White "Antia, Sopia"]
[Black "Mkrtchyan, Aida"]
[Result "1-0"]
[ECO "C08"]
[WhiteElo "1594"]
[BlackElo "1156"]
[Annotator "NA"]
[PlyCount "71"]
[EventDate "2021.03.18"]
[EventType "swiss"]
[EventCountry "GEO"]
[SourceTitle "playchess.com"]
[Source "ChessBase"]
[SourceQuality "1"]
[TimeControl "5400+30"]

1. e4 {[%emt 0:00:00]} e6 {[%emt 0:00:25]} 2. d4 {[%emt 0:00:00]} d5 {[%emt 0:00:12]} 3. Nd2 {[%emt 0:00:00]} c5 {[%emt 0:01:00]} 4. exd5 {[%emt 0:02:25]} exd5 {[%emt 0:00:49]} 5. Bb5+ {[%emt 0:01:21]} Bd7 {[%emt 0:00:44]} 6. Bxd7+ {[%emt 0:00:57]} Nxd7 {[%emt 0:00:50]} 7. Ne2 {[%emt 0:00:28]} Bd6 {[%emt 0:01:23]} 8. O-O {[%emt 0:00:27]} Ne7 {[%emt 0:00:57]} 9. dxc5 {[%emt 0:00:31]} Bxc5 {[%emt 0:02:05]} 10. Nb3 {[%emt 0:00:06]} Bd6 {[%emt 0:00:48]} 11. Nf4 {[%emt 0:01:06]} Nb6 {[%emt 0:01:42]} 12. Be3 {[%emt 0:01:47]} Be5 {[%emt 0:01:47]} 13. Nd3 {[%emt 0:02:41]} Bd6 {[%emt 0:02:58]} 14. Nd4 {[%emt 0:06:58]} O-O {[%emt 0:02:18]} 15. Qg4 {[%emt 0:01:24]} f5 {[%emt 0:01:48]} 16. Qh3 {[%emt 0:01:20]} Qe8 {[%emt 0:05:33]} 17. Bf4 {[%emt 0:03:15]} Bxf4 {[%emt 0:03:47]} 18. Nxf4 {[%emt 0:00:05]} Rf6 {[%emt 0:01:05]} 19. Rfe1 {[%emt 0:00:52]} Qd7 {[%emt 0:02:56]} 20. Rad1 {[%emt 0:03:04]} Nc6 {[%emt 0:02:02]} 21. Nde6 {[%emt 0:01:54]} Re8 {[%emt 0:01:36]} 22. Nxg7 {[%emt 0:10:32]} Rxe1+ {[%emt 0:09:23]} 23. Rxe1 {[%emt 0:00:03]} Qxg7 {[%emt 0:04:59]} 24. Nh5 {[%emt 0:00:11]} Qh6 {[%emt 0:01:34]} 25. Nxf6+ {[%emt 0:02:43]} Qxf6 {[%emt 0:00:15]} 26. Qg3+ {[%emt 0:00:09]} Qg7 {[%emt 0:02:13]} 27. Qf4 {[%emt 0:01:06]} Qxb2 {[%emt 0:03:44]} 28. Qxf5 {[%emt 0:00:11]} Kg7 {[%emt 0:02:15]} 29. Qg5+ {[%emt 0:00:38]} Kf7 {[%emt 0:01:37]} 30. Qf4+ {[%emt 0:01:03]} Kg6 {[%emt 0:03:36]} 31. Re6+ {[%emt 0:00:38]} Kg7 {[%emt 0:00:39]} 32. Qc7+ {[%emt 0:01:45]} Kf8 {[%emt 0:00:59]} 33. g3 {[%emt 0:01:01]} Qc1+ {[%emt 0:03:12]} 34. Kg2 {[%emt 0:00:15]} Qg5 {[%emt 0:00:24]} 35. Qxh7 {[%emt 0:01:08]} Ne7 {[%emt 0:01:03]} 36. h4 {[%emt 0:02:06]} 1-0

[Event "78th GEO-ch Women 1st League 2021"]
[Site "Tbilisi"]
[Date "2021.03.24"]
[Round "7.4"]
[White "Tsotsonava, Elene"]
[Black "Kirtadze, Anastasia"]
[Result "1-0"]
[ECO "C04"]
[WhiteElo "1805"]
[BlackElo "1810"]
[Annotator "NA RC"]
[PlyCount "121"]
[EventDate "2021.03.18"]
[EventType "swiss"]
[EventCountry "GEO"]
[SourceTitle "playchess.com"]
[Source "ChessBase"]
[SourceQuality "1"]
[TimeControl "5400+30"]

1. e4 {[%emt 0:00:00]} e6 {[%emt 0:00:00]} 2. d4 {[%emt 0:00:00]} d5 {[%emt 0:00:17]} 3. Nd2 {[%emt 0:00:00]} Nc6 {[%emt 0:01:47]} 4. Ngf3 {[%emt 0:00:20]} Nf6 {[%emt 0:02:18]} 5. Bd3 {[%emt 0:02:23]} Nb4 {[%emt 0:02:31]} 6. e5 {[%emt 0:02:42]} Nxd3+ {[%emt 0:01:32]} 7. cxd3 {[%emt 0:00:10]} Nd7 {[%emt 0:00:08]} 8. O-O {[%emt 0:00:48]} Be7 {[%emt 0:01:45]} 9. Nb3 {[%emt 0:00:59]} O-O {[%emt 0:01:54]} 10. Be3 {[%emt 0:01:15]} f6 {[%emt 0:06:32]} 11. exf6 {[%emt 0:01:12]} Bxf6 {[%emt 0:00:28]} 12. Re1 {[%emt 0:00:50]} a5 {[%emt 0:02:35]} 13. a4 {[%emt 0:00:56]} e5 {[%emt 0:06:35]} 14. dxe5 {[%emt 0:04:15]} Nxe5 {[%emt 0:00:10]} 15. Nxe5 {[%emt 0:03:27]} Bxe5 {[%emt 0:00:12]} 16. Bc5 {[%emt 0:00:46]} Re8 {[%emt 0:05:35]} 17. d4 {[%emt 0:08:03]} Bf6 {[%emt 0:02:58]} 18. Qh5 {[%emt 0:03:03]} Be6 {[%emt 0:01:12]} 19. Re3 {[%emt 0:02:28]} b6 {[%emt 0:01:15]} 20. Ba3 {[%emt 0:01:21]} Qd7 {[%emt 0:00:57]} 21. Rae1 {[%emt 0:04:03]} Bf7 {[%emt 0:01:01]} 22. Qf3 {[%emt 0:03:29]} Rxe3 {[%emt 0:01:34]} 23. Rxe3 {[%emt 0:00:16]} Qxa4 {[%emt 0:01:20]} 24. Be7 {[%emt 0:15:22]} Qc6 {[%emt 0:03:10]} 25. h3 {[%emt 0:06:23]} a4 {[%emt 0:03:17]} 26. Rc3 {[%emt 0:04:21]} Qe6 {[%emt 0:01:16]} 27. Re3 {[%emt 0:04:22]} Qxe7 {[%emt 0:04:20]} 28. Rxe7 {[%emt 0:00:36]} Bxe7 {[%emt 0:00:02]} 29. Nc1 {[%emt 0:01:47]} b5 {[%emt 0:01:35]} 30. Qc3 {[%emt 0:01:20]} b4 {[%emt 0:03:03]} 31. Qxc7 {[%emt 0:02:31]} Re8 {[%emt 0:04:15]} 32. Nd3 {[%emt 0:02:07]} a3 {[%emt 0:02:26]} 33. bxa3 {[%emt 0:00:52]} bxa3 {[%emt 0:00:17]} 34. Ne5 {[%emt 0:01:31]} Bg6 {[%emt 0:06:42]} 35. Qa5 {[%emt 0:04:30]} Bf7 {[%emt 0:07:20]} 36. Nxf7 {[%emt 0:02:14]} Kxf7 {[%emt 0:00:07]} 37. Qxd5+ {[%emt 0:00:02]} Kf8 {[%emt 0:00:10]} 38. Qf3+ {[%emt 0:00:27]} Kg8 {[%emt 0:00:24]} 39. Qb3+ {[%emt 0:00:28]} Kf8 {[%emt 0:01:19]} 40. g3 {[%emt 0:00:25]} Bd6 {[%emt 0:01:14]} 41. Kg2 {[%emt 0:01:30]} g6 {[%emt 0:01:51]} 42. Qb6 {[%emt 0:01:14]} Be7 {[%emt 0:00:52]} 43. d5 {[%emt 0:00:34]} Rd8 {[%emt 0:00:36]} 44. Qa5 {[%emt 0:00:19]} Rb8 {[%emt 0:01:15]} 45. Kf3 {[%emt 0:05:44]} Kf7 {[%emt 0:03:29]} 46. Qa7 $18 {[%emt 0:01:16]} Rd8 {[%emt 0:01:28]} 47. Ke4 {[%emt 0:00:11]} Kf6 {[%emt 0:00:19]} 48. Qa6+ {[%emt 0:01:29]} Rd6 {[%emt 0:00:17]} 49. Qa5 {[%emt 0:00:23]} Rd7 {[%emt 0:00:58]} 50. f4 {[%emt 0:00:52]} Bd6 {[%emt 0:00:31]} 51. Qa6 {[%emt 0:00:55]} Ke7 {[%emt 0:00:22]} 52. f5 {[%emt 0:00:26]} gxf5+ {[%emt 0:00:33]} 53. Kxf5 {[%emt 0:00:07]} Rc7 {[%emt 0:00:07]} 54. Qe2+ {[%emt 0:04:36]} Kd8 {[%emt 0:00:23]} 55. Qe6 {[%emt 0:02:07]} Rd7 {[%emt 0:00:26]} 56. Qg8+ {[%emt 0:00:13]} Kc7 {[%emt 0:00:18]} 57. Qa8 {[%emt 0:01:10]} Rf7+ {[%emt 0:00:25]} 58. Ke6 {[%emt 0:00:09]} Re7+ {[%emt 0:00:05]} 59. Kf6 {[%emt 0:00:11]} Rd7 {[%emt 0:00:12]} 60. Qc6+ {[%emt 0:01:04]} Kd8 {[%emt 0:00:18]} 61. Ke6 {[%emt 0:00:06]} 1-0

[Event "78th GEO-ch Women 1st League 2021"]
[Site "Tbilisi"]
[Date "2021.03.24"]
[Round "7.5"]
[White "Sichinava, Mariam"]
[Black "Oniani, Tamar"]
[Result "0-1"]
[ECO "A09"]
[WhiteElo "1516"]
[BlackElo "1604"]
[Annotator "NA RC"]
[PlyCount "74"]
[EventDate "2021.03.18"]
[EventType "swiss"]
[EventCountry "GEO"]
[SourceTitle "playchess.com"]
[Source "ChessBase"]
[SourceQuality "1"]
[TimeControl "5400+30"]

1. Nf3 {[%emt 0:00:00]} Nf6 {[%emt 0:03:20]} 2. g3 {[%emt 0:02:38]} d5 {[%emt 0:00:07]} 3. Bg2 {[%emt 0:00:06]} c5 {[%emt 0:00:04]} 4. c4 {[%emt 0:00:15]} d4 {[%emt 0:00:10]} 5. O-O {[%emt 0:00:07]} Nc6 {[%emt 0:00:08]} 6. e3 {[%emt 0:00:23]} e6 {[%emt 0:00:22]} 7. exd4 {[%emt 0:00:29]} Nxd4 {[%emt 0:00:39]} 8. Nxd4 {[%emt 0:00:13]} Qxd4 {[%emt 0:00:03]} 9. Nc3 {[%emt 0:00:38]} Be7 {[%emt 0:03:23]} 10. d3 {[%emt 0:01:56]} O-O {[%emt 0:03:02]} 11. Be3 {[%emt 0:03:17]} Qd8 {[%emt 0:06:00]} 12. Qc2 {[%emt 0:10:01]} Ng4 {[%emt 0:10:37]} 13. Bf4 {[%emt 0:03:38]} g5 {[%emt 0:13:24]} 14. Qe2 {[%emt 0:07:40]} Nxh2 {[%emt 0:01:35]} 15. Kxh2 {[%emt 0:00:09]} gxf4 {[%emt 0:00:03]} 16. Qg4+ {[%emt 0:00:16]} Kh8 {[%emt 0:00:01]} 17. Qxf4 {[%emt 0:00:17]} Bd6 {[%emt 0:00:28]} 18. Qh6 {[%emt 0:01:17]} f5 {[%emt 0:01:05]} 19. Nb5 {[%emt 0:05:24]} Be5 {[%emt 0:15:55]} 20. Qe3 {[%emt 0:10:29]} Bxb2 {[%emt 0:07:36]} 21. Rab1 {[%emt 0:00:11]} f4 {[%emt 0:01:27]} 22. Qxc5 {[%emt 0:01:34]} Bg7 {[%emt 0:02:10]} 23. Be4 {[%emt 0:08:22]} e5 {[%emt 0:06:55]} 24. d4 {[%emt 0:05:32]} Qg5 {[%emt 0:03:15]} 25. d5 {[%emt 0:10:10]} Qh5+ {[%emt 0:01:10]} 26. Kg1 {[%emt 0:01:31]} f3 {[%emt 0:00:27]} 27. Qe3 {[%emt 0:04:01]} Bg4 {[%emt 0:00:04]} 28. Rb3 {[%emt 0:04:11]} Qh3 {[%emt 0:01:40]} 29. Bxf3 {[%emt 0:00:06]} Bxf3 {[%emt 0:00:03]} 30. Qxf3 {[%emt 0:00:01]} Rxf3 {[%emt 0:00:06]} 31. Rxf3 {[%emt 0:00:08]} Qd7 {[%emt 0:00:04]} 32. Rd3 {[%emt 0:01:38]} a6 {[%emt 0:00:41]} 33. Nc3 {[%emt 0:00:07]} Rc8 {[%emt 0:00:03]} 34. Rb1 {[%emt 0:01:31]} Rxc4 {[%emt 0:00:09]} 35. d6 {[%emt 0:00:03]} e4 {[%emt 0:01:04]} 36. Nxe4 {[%emt 0:01:25]} Rxe4 {[%emt 0:00:29]} 37. Rc1 {[%emt 0:00:05]} Bd4 {[%emt 0:00:40]} 0-1

[Event "78th GEO-ch Women 1st League 2021"]
[Site "Tbilisi"]
[Date "2021.03.24"]
[Round "7.7"]
[White "Sordia, Marta"]
[Black "Antia, Sopia"]
[Result "1/2-1/2"]
[ECO "B32"]
[WhiteElo "1226"]
[BlackElo "1594"]
[Annotator "NA RC"]
[PlyCount "86"]
[EventDate "2021.03.18"]
[EventType "swiss"]
[EventCountry "GEO"]
[SourceTitle "playchess.com"]
[Source "ChessBase"]
[SourceQuality "1"]
[TimeControl "5400+30"]

1. e4 {[%emt 0:00:00]} c5 {[%emt 0:00:00]} 2. Nf3 {[%emt 0:00:00]} Nc6 {[%emt 0:00:00]} 3. d4 {[%emt 0:00:00]} cxd4 {[%emt 0:00:00]} 4. Nxd4 {[%emt 0:00:00]} e5 {[%emt 0:00:00]} 5. Nb5 {[%emt 0:00:03]} a6 {[%emt 0:00:00]} 6. Nd6+ {[%emt 0:01:37]} Bxd6 {[%emt 0:00:05]} 7. Qxd6 {[%emt 0:00:03]} Qf6 {[%emt 0:00:05]} 8. Qxf6 {[%emt 0:01:11]} Nxf6 {[%emt 0:00:06]} 9. Nc3 {[%emt 0:00:02]} Nb4 {[%emt 0:00:14]} 10. Bd3 {[%emt 0:00:58]} h6 {[%emt 0:00:06]} 11. O-O {[%emt 0:01:04]} Nxd3 {[%emt 0:00:14]} 12. cxd3 {[%emt 0:00:04]} d6 {[%emt 0:00:40]} 13. f3 {[%emt 0:00:45]} Be6 {[%emt 0:00:17]} 14. Be3 {[%emt 0:00:35]} O-O {[%emt 0:01:26]} 15. d4 {[%emt 0:03:03]} b5 {[%emt 0:03:19]} 16. d5 {[%emt 0:09:06]} Bc8 {[%emt 0:02:31]} 17. b4 {[%emt 0:01:37]} Bb7 {[%emt 0:01:35]} 18. Rfc1 {[%emt 0:05:08]} Rac8 {[%emt 0:04:12]} 19. Ne2 {[%emt 0:01:39]} Nd7 {[%emt 0:02:35]} 20. Rxc8 {[%emt 0:01:37]} Rxc8 {[%emt 0:00:10]} 21. Rc1 {[%emt 0:00:03]} Rxc1+ {[%emt 0:00:51]} 22. Nxc1 {[%emt 0:00:02]} f5 {[%emt 0:00:14]} 23. Ne2 {[%emt 0:00:08]} fxe4 {[%emt 0:01:53]} 24. fxe4 {[%emt 0:00:03]} Kf7 {[%emt 0:00:37]} 25. h3 {[%emt 0:03:11]} Ke8 {[%emt 0:01:13]} 26. Nc3 {[%emt 0:02:06]} Nf6 {[%emt 0:01:17]} 27. Kf2 {[%emt 0:01:18]} Bc8 {[%emt 0:00:32]} 28. Kf3 {[%emt 0:03:05]} Bd7 {[%emt 0:01:28]} 29. a3 {[%emt 0:03:32]} Ke7 {[%emt 0:00:12]} 30. Bd2 {[%emt 0:00:43]} Be8 {[%emt 0:00:49]} 31. g4 {[%emt 0:03:20]} Kf7 {[%emt 0:01:27]} 32. Be3 {[%emt 0:01:40]} Bd7 {[%emt 0:00:33]} 33. Nd1 {[%emt 0:04:28]} g5 {[%emt 0:04:16]} 34. Nf2 {[%emt 0:02:34]} Kg6 {[%emt 0:00:10]} 35. Bb6 {[%emt 0:01:20]} h5 {[%emt 0:02:49]} 36. Bd8 {[%emt 0:02:50]} hxg4+ {[%emt 0:02:14]} 37. hxg4 {[%emt 0:00:39]} Kf7 {[%emt 0:02:14]} 38. Bxf6 {[%emt 0:00:52]} Kxf6 {[%emt 0:00:05]} 39. Nh1 {[%emt 0:00:37]} Ke7 {[%emt 0:00:30]} 40. Ng3 {[%emt 0:00:10]} Kd8 {[%emt 0:01:12]} 41. Nf5 {[%emt 0:01:13]} Kc7 {[%emt 0:00:13]} 42. Nh6 {[%emt 0:00:21]} Be8 {[%emt 0:00:34]} 43. Nf5 {[%emt 0:00:43]} Bd7 {[%emt 0:03:43]} 1/2-1/2

[Event "78th GEO-ch Women 1st League 2021"]
[Site "Tbilisi"]
[Date "2021.03.24"]
[Round "7.8"]
[White "Tasoshvili, Tamar"]
[Black "Mgeladze, Kesaria"]
[Result "0-1"]
[ECO "E90"]
[WhiteElo "1528"]
[BlackElo "1380"]
[Annotator "NA RC"]
[PlyCount "84"]
[EventDate "2021.03.18"]
[EventType "swiss"]
[EventCountry "GEO"]
[SourceTitle "playchess.com"]
[Source "ChessBase"]
[SourceQuality "1"]
[TimeControl "5400+30"]

1. d4 {[%emt 1:30:30]} Nf6 {[%emt 0:00:57]} 2. Nf3 {[%emt 0:00:00]} g6 {[%emt 0:01:16]} 3. c4 {[%emt 0:00:00]} Bg7 {[%emt 0:01:15]} 4. Nc3 {[%emt 0:00:00]} O-O {[%emt 0:01:25]} 5. e4 {[%emt 0:00:00]} d6 {[%emt 0:01:00]} 6. h3 {[%emt 0:00:00]} e5 {[%emt 1:27:07]} 7. d5 {[%emt 0:03:00]} a5 {[%emt 0:00:30]} 8. Be3 {[%emt 0:00:30]} Na6 {[%emt 0:00:30]} 9. Bd3 {[%emt 0:00:30]} Nd7 {[%emt 0:00:30]} 10. a3 {[%emt 0:00:30]} Nac5 {[%emt 0:00:30]} 11. O-O {[%emt 0:00:30]} f5 {[%emt 0:00:30]} 12. Bxc5 {[%emt 0:00:00]} Nxc5 {[%emt 0:00:30]} 13. Qc2 {[%emt 0:00:00]} fxe4 {[%emt 0:00:30]} 14. Bxe4 {[%emt 0:00:00]} Nxe4 {[%emt 0:00:00]} 15. Qxe4 {[%emt 0:00:00]} Rf4 {[%emt 0:00:00]} 16. Qe2 {[%emt 0:00:00]} g5 {[%emt 0:01:30]} 17. Nh2 {[%emt 0:03:00]} Bd7 {[%emt 0:00:30]} 18. f3 {[%emt 0:00:30]} h5 {[%emt 0:00:30]} 19. g4 {[%emt 0:00:30]} Qe7 {[%emt 0:00:00]} 20. Ne4 {[%emt 0:00:00]} h4 {[%emt 0:00:00]} 21. Rfd1 {[%emt 0:00:00]} Raf8 {[%emt 0:00:00]} 22. Kg2 {[%emt 0:00:00]} Be8 {[%emt 0:00:00]} 23. Rac1 {[%emt 0:00:00]} Bg6 {[%emt 0:00:00]} 24. Rf1 {[%emt 0:00:00]} Bh6 {[%emt 0:00:00]} 25. b4 {[%emt 0:00:00]} axb4 {[%emt 0:00:00]} 26. axb4 {[%emt 0:00:00]} Qh7 {[%emt 0:04:00]} 27. Rce1 {[%emt 0:00:00]} Ra8 28. c5 {[%emt 0:04:30]} Ra3 {[%emt 0:01:00]} 29. cxd6 {[%emt 0:00:30]} Bxe4 {[%emt 0:00:30]} 30. dxc7 {[%emt 0:00:00]} Qxc7 {[%emt 0:00:00]} 31. fxe4 {[%emt 0:00:00]} Rg3+ {[%emt 0:00:00]} 32. Kh1 {[%emt 0:00:00]} Rxh3 {[%emt 0:00:00]} 33. Rxf4 {[%emt 0:00:00]} gxf4 {[%emt 0:00:00]} 34. Qb5 {[%emt 0:00:00]} f3 {[%emt 0:00:00]} 35. Qf1 {[%emt 0:00:00]} Rg3 {[%emt 0:00:00]} 36. Nxf3 {[%emt 0:00:00]} Qc3 {[%emt 0:00:00]} 37. Nh2 {[%emt 0:00:00]} Bf4 {[%emt 0:00:00]} 38. Re2 {[%emt 0:00:00]} Rh3 {[%emt 0:00:00]} 39. Rg2 {[%emt 0:00:00]} Qxb4 {[%emt 0:00:00]} 40. Re2 {[%emt 0:00:00]} Qc3 {[%emt 0:00:00]} 41. Rg2 {[%emt 0:00:00]} Qe3 {[%emt 0:00:00]} 42. Re2 {[%emt 0:03:16]} Qd3 {[%emt 0:00:00]} 0-1